fUST/lending_fUST_20250616
["ID","MTS","AMOUNT","RATE_DAILY","PERIOD"]
[366110302,1750068645597,-460.0,0.00021917,4]
[366110304,1750068645607,-460.0,0.00021917,4]
[366110306,1750068645617,-420.5895816,0.00021917,4]
[366110308,1750068645627,-460.0,0.00021917,4]
[366110309,1750068645636,-460.0,0.00021917,4]
[366110311,1750068645646,-500.0,0.00021917,4]
[366110313,1750068645655,-500.0,0.00021917,4]
[366110315,1750068645669,-460.0,0.00021917,4]
[366110317,1750068645679,-500.0,0.00021917,4]
[366110319,1750068645689,-500.0,0.00021917,4]
[366110321,1750068645699,-460.0,0.00021917,4]
[366110323,1750068645709,-460.0,0.00021917,4]
[366110325,1750068645719,-460.0,0.00021917,4]
[366110327,1750068645728,-462.73255739,0.00021917,4]
[366110329,1750068645738,-426.79904501,0.00021917,4]
[366110331,1750068645750,-557.88264246,0.00021918,2]
[366110333,1750068645760,-359.14554402,0.00021942,2]
[366110335,1750068645769,-921.92111276,0.00021969,6]
[366110337,1750068645779,-466.00191466,0.00021973,2]
[366110339,1750068645789,-500.0,0.00021973,2]
[366110341,1750068645798,-500.0,0.00021973,2]
[366110343,1750068645807,-500.0,0.00021973,2]
[366110345,1750068645816,-500.0,0.00021973,2]
[366110347,1750068645826,-501.86867376,0.00021973,2]
[366110349,1750068645835,-500.0,0.00021973,2]
[366110351,1750068645846,-500.0,0.00021973,2]
[366110353,1750068645855,-507.06452997,0.00021973,2]
[366110355,1750068645864,-500.43084723,0.00021973,2]
[366110357,1750068645873,-500.0,0.00021973,2]
[366110358,1750068645883,-500.0,0.00021973,2]
[366110360,1750068645892,-243.94881655,0.00021973,2]
[366110362,1750068645902,-500.0,0.00021973,2]
[366110364,1750068645912,-500.0,0.00021973,2]
[366110366,1750068645921,-224.80073573,0.00021973,2]
[366110368,1750068645931,-411.73137713,0.00021973,2]
[366110370,1750068645942,-1000.0,0.00022,22]
[366110372,1750068645951,-166.0,0.00022,2]
[366110374,1750068645960,-174.0,0.00022,2]
[366110376,1750068645969,-151.0,0.00022032,7]
[366110378,1750068645979,-3068.43224458,0.00022091,2]
[366110380,1750068645988,-921.92111276,0.00022176,6]
[366110382,1750068645998,-340.44042905,0.00022191,4]
[366110384,1750068646008,-460.0,0.00022191,4]
[366110386,1750068646018,-460.0,0.00022191,4]
[366110388,1750068646027,-460.0,0.00022191,4]
[366110390,1750068646037,-460.0,0.00022191,4]
[366110392,1750068646046,-460.0,0.00022191,4]
[366110393,1750068646056,-460.0,0.00022191,4]
[366110395,1750068646066,-460.0,0.00022191,4]
[366110397,1750068646076,-460.0,0.00022191,4]
[366110399,1750068646085,-460.0,0.00022191,4]
[366110401,1750068646094,-468.31138332,0.00022191,4]
[366110403,1750068646104,-588.16597543,0.00022191,4]
[366110405,1750068646113,-460.0,0.00022191,4]
[366110407,1750068646123,-460.0,0.00022191,4]
[366110409,1750068646134,-460.0,0.00022191,4]
[366110411,1750068646143,-460.0,0.00022191,4]
[366110413,1750068646153,-460.0,0.00022191,4]
[366110415,1750068646163,-410.0,0.00022191,4]
[366110417,1750068646173,-309.31344587,0.00022191,4]
[366110419,1750068646183,-460.0,0.00022191,4]
[366110421,1750068646192,-460.0,0.00022191,4]
[366110423,1750068646202,-460.0,0.00022191,4]
[366110425,1750068646212,-460.0,0.00022191,4]
[366110427,1750068646222,-460.0,0.00022191,4]
[366110429,1750068646232,-460.0,0.00022191,4]
[366110431,1750068646241,-460.0,0.00022191,4]
[366110433,1750068646251,-460.0,0.00022191,4]
[366110435,1750068646261,-425.22575888,0.00022191,4]
[366110437,1750068646270,-460.0,0.00022191,4]
[366110438,1750068646280,-439.95066038,0.00022191,4]
[366110440,1750068646289,-460.0,0.00022191,2]
[366110442,1750068646299,-271.79513577,0.00022191,4]
[366110444,1750068646308,-360.98385158,0.00022191,4]
[366110446,1750068646318,-460.0,0.00022191,4]
[366110448,1750068646327,-460.0,0.00022191,4]
[366110450,1750068646340,-365.64449765,0.00022191,4]
[366110452,1750068646349,-460.0,0.00022191,4]
[366110454,1750068646359,-460.0,0.00022191,4]
[366110456,1750068646369,-460.0,0.00022191,4]
[366110458,1750068646378,-460.0,0.00022191,4]
[366110460,1750068646387,-440.0,0.00022191,4]
[366110462,1750068646397,-465.07343899,0.00022191,4]
[366110464,1750068646406,-462.93175639,0.00022191,4]
[366110466,1750068646416,-460.0,0.00022191,4]
[366110468,1750068646425,-460.0,0.00022191,4]
[366110470,1750068646434,-460.0,0.00022191,4]
[366110472,1750068646444,-420.0,0.00022191,4]
[366110474,1750068646454,-401.89411682,0.00022191,4]
[366110475,1750068646463,-460.0,0.00022191,4]
[366110477,1750068646472,-460.0,0.00022191,4]
[366110479,1750068646481,-460.0,0.00022191,4]
[366110480,1750068646490,-394.8692918,0.00022191,4]
[366110482,1750068646500,-460.0,0.00022191,4]
[366110484,1750068646509,-460.0,0.00022191,4]
[366110486,1750068646518,-460.0,0.00022191,4]
[366110488,1750068646528,-465.19385461,0.00022191,4]
[366110490,1750068646538,-460.0,0.00022191,4]
[366110492,1750068646547,-460.0,0.00022191,4]
[366110494,1750068646556,-460.0,0.00022191,4]
[366110496,1750068646566,-460.0,0.00022191,4]
[366110497,1750068646576,-460.0,0.00022191,4]
[366110498,1750068646585,-460.0,0.00022191,4]
[366110499,1750068646594,-460.0,0.00022191,4]
[366110500,1750068646604,-460.0,0.00022191,4]
[366110501,1750068646613,-460.0,0.00022191,4]
[366110502,1750068646623,-460.0,0.00022191,4]
[366110503,1750068646633,-460.0,0.00022191,4]
[366110504,1750068646643,-460.0,0.00022191,4]
[366110505,1750068646652,-460.0,0.00022191,4]
[366110506,1750068646663,-151.0,0.00022191,7]
[366110507,1750068646676,-460.0,0.00022191,4]
[366110508,1750068646685,-460.0,0.00022191,4]
[366110509,1750068646695,-162.99650556,0.00022191,4]
[366110510,1750068646704,-424.7844398,0.00022191,4]
[366110511,1750068646714,-460.0,0.00022191,4]
[366110512,1750068646723,-460.0,0.00022191,4]
[366110513,1750068646732,-460.0,0.00022191,4]
[366110514,1750068646742,-555.15,0.00022191,2]
[366110515,1750068646751,-471.65189326,0.00022191,4]
[366110516,1750068646762,-462.34448338,0.00022191,4]
[366110517,1750068646771,-460.0,0.00022191,4]
[366110518,1750068646780,-460.0,0.00022191,4]
[366110519,1750068646790,-460.0,0.00022191,4]
[366110520,1750068646800,-460.0,0.00022191,4]
[366110521,1750068646810,-460.0,0.00022191,4]
[366110522,1750068646820,-460.0,0.00022191,4]
[366110523,1750068646829,-373.76179154,0.00022191,4]
[366110525,1750068646839,-460.0,0.00022191,4]
[366110527,1750068646848,-460.0,0.00022191,4]
[366110529,1750068646857,-390.0,0.00022191,4]
[366110530,1750068646867,-460.0,0.00022191,4]
[366110532,1750068646877,-186.11544116,0.00022191,4]
[366110534,1750068646886,-460.0,0.00022191,4]
[366110536,1750068646895,-410.0,0.00022191,4]
[366110538,1750068646905,-460.0,0.00022191,4]
[366110540,1750068646915,-460.0,0.00022191,4]
[366110542,1750068646925,-410.0,0.00022191,4]
[366110544,1750068646935,-460.0,0.00022191,4]
[366110546,1750068646944,-420.0,0.00022191,4]
[366110548,1750068646954,-378.37290027,0.00022191,4]
[366110550,1750068646964,-460.0,0.00022191,4]
[366110552,1750068646973,-460.0,0.00022191,4]
[366110554,1750068646982,-215.46648476,0.00022191,4]
[366110556,1750068646992,-460.0,0.00022191,4]
[366110558,1750068647001,-405.16985729,0.00022191,4]
[366110560,1750068647011,-425.15510915,0.00022191,4]
[366110562,1750068647021,-463.52783984,0.00022191,4]
[366110564,1750068647031,-460.0,0.00022191,4]
[366110566,1750068647041,-460.0,0.00022191,4]
[366110568,1750068647051,-460.0,0.00022191,4]
[366110569,1750068647061,-460.0,0.00022191,4]
[366110571,1750068647071,-460.0,0.00022191,4]
[366110573,1750068647080,-432.6731681,0.00022191,4]
[366110575,1750068647089,-460.0,0.00022191,4]
[366110577,1750068647099,-460.0,0.00022191,4]
[366110579,1750068647109,-501.45822973,0.00022191,4]
[366110581,1750068647118,-460.0,0.00022191,4]
[366110583,1750068647128,-460.0,0.00022191,4]
[366110585,1750068647137,-440.0,0.00022191,4]
[366110587,1750068647146,-460.0,0.00022191,4]
[366110589,1750068647156,-460.0,0.00022191,4]
[366110591,1750068647166,-460.0,0.00022191,4]
[366110593,1750068647175,-460.0,0.00022191,4]
[366110595,1750068647184,-151.0,0.00022191,7]
[366110597,1750068647193,-460.0,0.00022191,4]
[366110599,1750068647203,-344.80301944,0.00022191,4]
[366110601,1750068647212,-465.45041051,0.00022191,4]
[366110602,1750068647224,-388.98924997,0.00022191,4]
[366110604,1750068647233,-460.0,0.00022191,4]
[366110606,1750068647243,-151.0,0.00022191,7]
[366110608,1750068647254,-460.0,0.00022191,4]
[366110610,1750068647264,-151.0,0.00022191,7]
[366110612,1750068647273,-416.20144455,0.00022191,4]
[366110613,1750068647284,-561.81176251,0.00022191,4]
[366110615,1750068647294,-151.0,0.00022191,7]
[366110617,1750068647304,-460.0,0.00022191,4]
[366110619,1750068647314,-380.0,0.00022191,4]
[366110621,1750068647323,-460.0,0.00022191,4]
[366110622,1750068647332,-845.36,0.00022191,4]
[366110624,1750068647342,-460.0,0.00022191,4]
[366110626,1750068647351,-1321.52,0.00022191,4]
[366110628,1750068647361,-460.0,0.00022191,4]
[366110630,1750068647370,-460.0,0.00022191,4]
[366110632,1750068647381,-400.0,0.00022191,4]
[366110634,1750068647394,-460.0,0.00022191,4]
[366110636,1750068647404,-1181.76,0.00022191,4]
[366110638,1750068647413,-460.0,0.00022191,4]
[366110640,1750068647422,-460.0,0.00022191,4]
[366110642,1750068647431,-460.0,0.00022191,4]
[366110643,1750068647440,-460.0,0.00022191,4]
[366110645,1750068647450,-1399.51,0.00022191,4]
[366110647,1750068647459,-949.96,0.00022191,4]
[366110649,1750068647468,-460.0,0.00022191,4]
[366110660,1750068647569,-460.0,0.00022191,4]
[366110662,1750068647579,-460.0,0.00022191,4]
[366110664,1750068647589,-460.0,0.00022191,4]
[366110666,1750068647599,-460.0,0.00022191,4]
[366110668,1750068647608,-460.0,0.00022191,4]
[366110670,1750068647618,-376.49519616,0.00022191,4]
[366110672,1750068647628,-550.31,0.00022191,4]
[366110673,1750068647637,-460.0,0.00022191,4]
[366110675,1750068647646,-460.0,0.00022191,4]
[366110677,1750068647656,-460.0,0.00022191,4]
[366110679,1750068647668,-460.0,0.00022191,4]
[366110681,1750068647678,-460.0,0.00022191,4]
[366110683,1750068647688,-460.0,0.00022191,4]
[366110685,1750068647697,-500.0,0.00022191,4]
[366110687,1750068647706,-475.83,0.00022191,4]
[366110688,1750068647717,-460.0,0.00022191,4]
[366110690,1750068647726,-460.0,0.00022191,4]
[366110692,1750068647736,-460.0,0.00022191,4]
[366110694,1750068647747,-460.0,0.00022191,4]
[366110696,1750068647757,-413.86317913,0.00022191,4]
[366110698,1750068647767,-460.0,0.00022191,4]
[366110699,1750068647776,-460.0,0.00022191,4]
[366110701,1750068647785,-1149.897466,0.00022191,2]
[366110703,1750068647795,-460.0,0.00022191,4]
[366110705,1750068647804,-623.44,0.00022191,4]
[366110707,1750068647814,-1149.897466,0.00022191,2]
[366110709,1750068647823,-460.0,0.00022191,4]
[366110711,1750068647833,-460.0,0.00022191,4]
[366110713,1750068647842,-460.0,0.00022191,4]
[366110714,1750068647851,-460.0,0.00022191,4]
[366110716,1750068647861,-460.0,0.00022191,4]
[366110718,1750068647871,-460.0,0.00022191,4]
[366110720,1750068647880,-369.51107544,0.00022191,4]
[366110722,1750068647890,-460.0,0.00022191,4]
[366110724,1750068647899,-460.0,0.00022191,4]
[366110726,1750068647909,-460.0,0.00022191,4]
[366110728,1750068647918,-430.80951351,0.00022191,4]
[366110729,1750068647928,-420.0,0.00022191,4]
[366110731,1750068647938,-460.0,0.00022191,4]
[366110733,1750068647947,-460.0,0.00022191,4]
[366110735,1750068647957,-460.0,0.00022191,4]
[366110737,1750068647967,-460.0,0.00022191,4]
[366110739,1750068647976,-460.0,0.00022191,4]
[366110741,1750068647985,-460.0,0.00022191,4]
[366110743,1750068647994,-460.0,0.00022191,4]
[366110745,1750068648004,-460.0,0.00022191,4]
[366110747,1750068648013,-460.0,0.00022191,4]
[366110748,1750068648022,-460.0,0.00022191,4]
[366110750,1750068648033,-460.0,0.00022191,4]
[366110752,1750068648043,-460.0,0.00022191,4]
[366110754,1750068648053,-460.0,0.00022191,4]
[366110756,1750068648063,-460.0,0.00022191,4]
[366110758,1750068648073,-460.0,0.00022191,4]
[366110760,1750068648083,-460.0,0.00022191,4]
[366110762,1750068648093,-460.0,0.00022191,4]
[366110764,1750068648103,-460.0,0.00022191,4]
[366110765,1750068648112,-460.0,0.00022191,4]
[366110767,1750068648122,-507.49,0.00022191,4]
[366110769,1750068648131,-408.46524953,0.00022191,4]
[366110771,1750068648141,-460.0,0.00022191,4]
[366110773,1750068648150,-438.10238954,0.00022191,4]
[366110775,1750068648160,-460.0,0.00022191,4]
[366110776,1750068648170,-460.0,0.00022191,4]
[366110778,1750068648180,-460.0,0.00022191,4]
[366110780,1750068648189,-460.0,0.00022191,4]
[366110782,1750068648199,-460.0,0.00022191,4]
[366110784,1750068648210,-222.77180377,0.00022191,4]
[366110786,1750068648219,-460.0,0.00022191,4]
[366110788,1750068648229,-460.0,0.00022191,4]
[366110790,1750068648239,-460.0,0.00022191,4]
[366110792,1750068648249,-460.0,0.00022191,4]
[366110794,1750068648258,-460.0,0.00022191,4]
[366110796,1750068648268,-460.0,0.00022191,4]
[366110797,1750068648278,-460.0,0.00022191,4]
[366110799,1750068648287,-460.0,0.00022191,4]
[366110801,1750068648297,-464.111819,0.00022191,4]
[366110803,1750068648307,-460.0,0.00022191,4]
[366110805,1750068648317,-332.16473009,0.00022191,4]
[366110807,1750068648327,-460.0,0.00022191,4]
[366110809,1750068648337,-445.25010142,0.00022191,4]
[366110811,1750068648347,-460.0,0.00022191,4]
[366110813,1750068648356,-460.0,0.00022191,4]
[366110815,1750068648366,-460.0,0.00022191,4]
[366110817,1750068648375,-460.0,0.00022191,4]
[366110818,1750068648384,-460.0,0.00022191,4]
[366110820,1750068648394,-460.0,0.00022191,4]
[366110822,1750068648404,-463.93162997,0.00022191,4]
[366110824,1750068648415,-460.0,0.00022191,4]
[366110826,1750068648424,-460.0,0.00022191,4]
[366110828,1750068648434,-460.0,0.00022191,4]
[366110830,1750068648443,-460.0,0.00022191,4]
[366110832,1750068648452,-438.57017707,0.00022191,4]
[366110833,1750068648462,-460.0,0.00022191,4]
[366110835,1750068648472,-460.0,0.00022191,4]
[366110837,1750068648482,-460.0,0.00022191,4]
[366110839,1750068648492,-460.0,0.00022191,4]
[366110841,1750068648501,-460.0,0.00022191,4]
[366110843,1750068648511,-460.0,0.00022191,4]
[366110845,1750068648522,-460.0,0.00022191,4]
[366110847,1750068648531,-460.0,0.00022191,4]
[366110849,1750068648543,-460.0,0.00022191,4]
[366110851,1750068648553,-460.0,0.00022191,4]
[366110853,1750068648564,-460.0,0.00022191,4]
[366110855,1750068648574,-460.0,0.00022191,4]
[366110857,1750068648584,-1526.03,0.00022191,4]
[366110859,1750068648594,-460.0,0.00022191,4]
[366110860,1750068648603,-466.66483288,0.00022191,4]
[366110862,1750068648613,-460.0,0.00022191,4]
[366110864,1750068648623,-460.0,0.00022191,4]
[366110866,1750068648634,-460.0,0.00022191,4]
[366110868,1750068648643,-151.0,0.00022191,7]
[366110870,1750068648653,-460.0,0.00022191,4]
[366110872,1750068648664,-460.0,0.00022191,4]
[366110874,1750068648675,-460.0,0.00022191,4]
[366110875,1750068648685,-460.0,0.00022191,4]
[366110877,1750068648695,-460.0,0.00022191,4]
[366110879,1750068648705,-416.2162323,0.00022191,4]
[366110881,1750068648715,-460.0,0.00022191,4]
[366110883,1750068648725,-1017.26,0.00022191,4]
[366110885,1750068648735,-460.0,0.00022191,4]
[366110887,1750068648747,-460.0,0.00022191,4]
[366110889,1750068648758,-460.0,0.00022191,4]
[366110891,1750068648768,-460.0,0.00022191,4]
[366110893,1750068648778,-460.0,0.00022191,4]
[366110895,1750068648788,-460.0,0.00022191,4]
[366110897,1750068648798,-257.66965558,0.00022191,4]
[366110899,1750068648807,-460.0,0.00022191,4]
[366110901,1750068648817,-460.0,0.00022191,4]
[366110902,1750068648826,-892.04,0.00022191,4]
[366110904,1750068648837,-426.02649259,0.00022191,4]
[366110906,1750068648846,-420.0,0.00022191,4]
[366110908,1750068648855,-460.0,0.00022191,4]
[366110910,1750068648865,-460.0,0.00022191,4]
[366110912,1750068648875,-346.31845381,0.00022191,4]
[366110914,1750068648884,-460.0,0.00022191,4]
[366110916,1750068648893,-460.0,0.00022191,4]
[366110918,1750068648903,-359.43802307,0.00022191,4]
[366110920,1750068648913,-169.35273959,0.00022191,4]
[366110922,1750068648923,-460.0,0.00022191,4]
[366110924,1750068648932,-203.64455972,0.00022191,4]
[366110926,1750068648942,-460.0,0.00022191,4]
[366110928,1750068648952,-460.0,0.00022191,4]
[366110930,1750068648962,-460.0,0.00022191,4]
[366110932,1750068648971,-460.0,0.00022191,4]
[366110933,1750068648980,-460.0,0.00022191,4]
[366110935,1750068648990,-460.0,0.00022191,4]
[366110937,1750068649000,-460.0,0.00022191,4]
[366110939,1750068649010,-460.0,0.00022191,4]
[366110941,1750068649019,-330.68316063,0.00022191,4]
[366110943,1750068649028,-460.0,0.00022191,4]
[366110945,1750068649038,-463.10017045,0.00022191,4]
[366110947,1750068649049,-4977.04,0.00022325,2]
[366110949,1750068649059,-921.92111276,0.00022383,7]
[366110951,1750068649069,-190.80421666,0.00022465,4]
[366110953,1750068649079,-308.40361326,0.00022465,4]
[366110955,1750068649089,-460.0,0.00022465,4]
[366110957,1750068649099,-460.0,0.00022465,4]
[366110959,1750068649109,-460.0,0.00022465,4]
[366110961,1750068649118,-460.0,0.00022465,4]
[366110963,1750068649128,-460.0,0.00022465,4]
[366110965,1750068649138,-460.0,0.00022465,4]
[366110967,1750068649148,-460.0,0.00022465,4]
[366110969,1750068649158,-460.0,0.00022465,4]
[366110971,1750068649168,-460.0,0.00022465,4]
[366110973,1750068649178,-202.7051326,0.00022465,4]
[366110975,1750068649188,-485.13845365,0.00022465,4]
[366110977,1750068649198,-472.23030786,0.00022465,4]
[366110979,1750068649209,-460.0,0.00022465,4]
[366110980,1750068649218,-460.0,0.00022465,4]
[366110982,1750068649228,-460.14387784,0.00022465,4]
[366110984,1750068649238,-460.0,0.00022465,2]
[366110986,1750068649249,-491.2640321,0.00022465,4]
[366110987,1750068649258,-420.0,0.00022465,4]
[366110988,1750068649268,-475.6638272,0.00022465,4]
[366110989,1750068649278,-460.0,0.00022465,4]
[366110990,1750068649288,-460.0,0.00022465,4]
[366110991,1750068649299,-422.41056959,0.00022465,4]
[366110992,1750068649309,-425.94549569,0.00022465,4]
[366110993,1750068649319,-460.0,0.00022465,4]
[366110994,1750068649329,-552.18393883,0.00022465,4]
[366110995,1750068649338,-460.0,0.00022465,4]
[366110996,1750068649348,-460.0,0.00022465,4]
[366110997,1750068649358,-460.0,0.00022465,4]
[366110998,1750068649368,-460.0,0.00022465,4]
[366110999,1750068649379,-286.52231408,0.00022465,4]
[366111000,1750068649390,-460.0,0.00022465,4]
[366111001,1750068649400,-460.0,0.00022465,4]
[366111002,1750068649409,-460.0,0.00022465,4]
[366111003,1750068649419,-460.0,0.00022465,4]
[366111004,1750068649429,-460.0,0.00022465,4]
[366111005,1750068649439,-460.0,0.00022465,4]
[366111006,1750068649449,-460.0,0.00022465,4]
[366111007,1750068649459,-151.0,0.00022465,7]
[366111008,1750068649470,-460.0,0.00022465,4]
[366111009,1750068649480,-323.7558837,0.00022465,4]
[366111010,1750068649491,-460.0,0.00022465,4]
[366111011,1750068649501,-555.15,0.00022465,2]
[366111012,1750068649511,-460.0,0.00022465,4]
[366111013,1750068649522,-460.0,0.00022465,4]
[366111014,1750068649531,-460.0,0.00022465,4]
[366111015,1750068649543,-460.0,0.00022465,4]
[366111016,1750068649554,-460.0,0.00022465,4]
[366111017,1750068649563,-551.51486946,0.00022465,4]
[366111018,1750068649573,-469.43628336,0.00022465,4]
[366111019,1750068649583,-426.96875958,0.00022465,4]
[366111020,1750068649592,-420.0,0.00022465,4]
[366111021,1750068649602,-460.0,0.00022465,4]
[366111022,1750068649612,-460.0,0.00022465,4]
[366111023,1750068649622,-460.0,0.00022465,4]
[366111027,1750068649738,-460.0,0.00022465,4]
[366111029,1750068649753,-460.0,0.00022465,4]
[366111031,1750068649763,-460.0,0.00022465,4]
[366111033,1750068649773,-460.0,0.00022465,4]
[366111035,1750068649783,-460.0,0.00022465,4]
[366111036,1750068649792,-240.23198759,0.00022465,4]
[366111038,1750068649802,-328.23189614,0.00022465,4]
[366111040,1750068649811,-460.0,0.00022465,4]
[366111042,1750068649821,-460.0,0.00022465,4]
[366111044,1750068649830,-460.0,0.00022465,4]
[366111046,1750068649839,-460.0,0.00022465,4]
[366111048,1750068649849,-351.5387891,0.00022465,4]
[366111050,1750068649858,-460.0,0.00022465,4]
[366111052,1750068649868,-460.0,0.00022465,4]
[366111054,1750068649878,-386.60299656,0.00022465,4]
[366111056,1750068649888,-460.0,0.00022465,4]
[366111058,1750068649897,-460.0,0.00022465,4]
[366111060,1750068649906,-460.0,0.00022465,4]
[366111062,1750068649916,-460.0,0.00022465,4]
[366111064,1750068649926,-845.36,0.00022465,4]
[366111066,1750068649935,-460.0,0.00022465,4]
[366111068,1750068649944,-1321.52,0.00022465,4]
[366111069,1750068649954,-176.6070701,0.00022465,4]
[366111071,1750068649963,-460.0,0.00022465,4]
[366111073,1750068649972,-460.0,0.00022465,4]
[366111075,1750068649982,-1181.76,0.00022465,4]
[366111077,1750068649992,-460.0,0.00022465,4]
[366111079,1750068650001,-460.0,0.00022465,4]
[366111081,1750068650010,-438.11674702,0.00022465,4]
[366111083,1750068650020,-460.0,0.00022465,4]
[366111085,1750068650030,-1399.51,0.00022465,4]
[366111087,1750068650040,-949.96,0.00022465,4]
[366111089,1750068650050,-460.0,0.00022465,4]
[366111091,1750068650060,-460.0,0.00022465,4]
[366111093,1750068650069,-371.28073416,0.00022465,4]
[366111095,1750068650079,-460.0,0.00022465,4]
[366111097,1750068650088,-460.0,0.00022465,4]
[366111099,1750068650097,-410.0,0.00022465,4]
[366111101,1750068650106,-550.31,0.00022465,4]
[366111103,1750068650116,-151.56838024,0.00022465,4]
[366111105,1750068650125,-336.45260583,0.00022465,4]
[366111106,1750068650135,-466.98698619,0.00022465,4]
[366111108,1750068650145,-460.0,0.00022465,4]
[366111110,1750068650155,-460.0,0.00022465,4]
[366111112,1750068650164,-460.0,0.00022465,4]
[366111114,1750068650174,-535.51112876,0.00022465,4]
[366111116,1750068650183,-475.83,0.00022465,4]
[366111118,1750068650193,-460.0,0.00022465,4]
[366111120,1750068650202,-460.0,0.00022465,4]
[366111122,1750068650212,-460.0,0.00022465,4]
[366111124,1750068650221,-408.36725475,0.00022465,4]
[366111126,1750068650231,-460.0,0.00022465,4]
[366111128,1750068650241,-460.0,0.00022465,4]
[366111130,1750068650251,-1149.897466,0.00022465,2]
[366111132,1750068650260,-460.0,0.00022465,4]
[366111134,1750068650270,-623.44,0.00022465,4]
[366111136,1750068650279,-1149.897466,0.00022465,2]
[366111138,1750068650289,-460.0,0.00022465,4]
[366111140,1750068650298,-460.0,0.00022465,4]
[366111141,1750068650308,-460.0,0.00022465,4]
[366111142,1750068650317,-460.0,0.00022465,4]
[366111143,1750068650327,-414.36142621,0.00022465,4]
[366111144,1750068650338,-460.0,0.00022465,4]
[366111145,1750068650347,-504.31189285,0.00022465,4]
[366111146,1750068650357,-460.0,0.00022465,4]
[366111147,1750068650367,-460.0,0.00022465,4]
[366111148,1750068650377,-460.0,0.00022465,4]
[366111149,1750068650386,-460.0,0.00022465,4]
[366111150,1750068650396,-460.0,0.00022465,4]
[366111151,1750068650405,-460.0,0.00022465,4]
[366111152,1750068650414,-460.0,0.00022465,4]
[366111153,1750068650424,-460.0,0.00022465,4]
[366111154,1750068650433,-460.0,0.00022465,4]
[366111155,1750068650443,-460.0,0.00022465,4]
[366111156,1750068650452,-460.0,0.00022465,4]
[366111157,1750068650462,-460.0,0.00022465,4]
[366111158,1750068650471,-460.0,0.00022465,4]
[366111159,1750068650482,-460.0,0.00022465,4]
[366111160,1750068650491,-460.0,0.00022465,4]
[366111161,1750068650500,-460.0,0.00022465,4]
[366111162,1750068650512,-460.0,0.00022465,4]
[366111163,1750068650522,-460.0,0.00022465,4]
[366111164,1750068650531,-410.0,0.00022465,4]
[366111165,1750068650540,-460.0,0.00022465,4]
[366111166,1750068650549,-507.49,0.00022465,4]
[366111167,1750068650559,-460.0,0.00022465,4]
[366111168,1750068650568,-205.27918428,0.00022465,4]
[366111169,1750068650578,-460.0,0.00022465,4]
[366111170,1750068650587,-460.0,0.00022465,4]
[366111171,1750068650596,-440.0,0.00022465,4]
[366111172,1750068650606,-442.532581,0.00022465,4]
[366111173,1750068650616,-460.0,0.00022465,4]
[366111174,1750068650626,-460.0,0.00022465,4]
[366111175,1750068650635,-460.0,0.00022465,4]
[366111176,1750068650646,-460.0,0.00022465,4]
[366111177,1750068650655,-269.80600474,0.00022465,4]
[366111178,1750068650669,-460.0,0.00022465,4]